lending/lending_fUSD_20251124
["ID","MTS","AMOUNT","RATE_DAILY","PERIOD"]
[394788609,1763949044905,-506.37307044,0.0003863,8]
[394788610,1763949044914,-643.67963794,0.0003863,8]
[394788611,1763949044923,-357.27051949,0.0003863,8]
[394788612,1763949044933,-506.44642292,0.0003863,8]
[394788613,1763949044942,-151.0,0.0003863,120]
[394788614,1763949044951,-503.11658506,0.0003863,8]
[394788615,1763949044961,-540.1784483,0.0003863,8]
[394788616,1763949044970,-164.98179035,0.0003863,8]
[394788617,1763949044979,-151.0,0.0003863,120]
[394788618,1763949044990,-624.47024942,0.0003863,8]
[394788619,1763949045001,-161.64342082,0.0003863,8]
[394788620,1763949045010,-151.0,0.0003863,120]
[394788621,1763949045019,-500.0,0.0003863,8]
[394788622,1763949045029,-540.28178805,0.0003863,8]
[394788623,1763949045040,-157.044958,0.0003863,120]
[394788624,1763949045051,-500.0,0.0003863,8]
[394788625,1763949045061,-500.0,0.0003863,8]
[394788626,1763949045072,-361.38570182,0.0003863,8]
[394788627,1763949045083,-290.12510166,0.0003863,8]
[394788628,1763949045094,-300.91334612,0.0003863,2]
[394788629,1763949045102,-504.59641058,0.0003863,8]
[394788630,1763949045113,-500.0,0.0003863,8]
[394788631,1763949045124,-267.765502,0.0003863,120]
[394788632,1763949045133,-500.0,0.0003863,8]
[394788633,1763949045142,-267.765502,0.0003863,120]
[394788634,1763949045151,-500.0,0.0003863,8]
[394788635,1763949045161,-151.0,0.0003863,120]
[394788636,1763949045170,-267.765502,0.0003863,120]
[394788637,1763949045179,-267.765502,0.0003863,120]
[394788638,1763949045189,-500.0,0.0003863,8]
[394788639,1763949045198,-151.0,0.0003863,120]
[394788640,1763949045209,-1054.54731938,0.0003863,8]
[394788641,1763949045218,-507.65565827,0.0003863,8]
[394788642,1763949045227,-162.494772,0.0003863,120]
[394788643,1763949045237,-151.0,0.0003863,120]
[394788644,1763949045245,-162.494772,0.0003863,120]
[394788645,1763949045255,-167.701857,0.0003863,120]
[394788646,1763949045265,-568.17806323,0.0003863,8]
[394788647,1763949045274,-151.0,0.0003863,120]
[394788648,1763949045283,-151.0,0.0003863,120]
[394788649,1763949045293,-151.0,0.0003863,120]
[394788650,1763949045303,-162.494772,0.0003863,120]
[394788651,1763949045312,-151.0,0.0003863,120]
[394788652,1763949045322,-151.0,0.0003863,120]
[394788653,1763949045332,-500.0,0.0003863,8]
[394788654,1763949045341,-162.494772,0.0003863,120]
[394788655,1763949045350,-151.0,0.0003863,120]
[394788656,1763949045359,-151.0,0.0003863,120]
[394788657,1763949045369,-155.686791,0.0003863,120]
[394788658,1763949045379,-151.0,0.0003863,120]
[394788659,1763949045387,-500.0,0.0003863,8]
[394788660,1763949045397,-153.864984,0.0003863,120]
[394788661,1763949045406,-500.0,0.0003863,8]
[394788662,1763949045415,-207.281459,0.0003863,60]
[394788663,1763949045424,-324.083758,0.0003863,120]
[394788664,1763949045433,-151.0,0.0003863,120]
[394788665,1763949045442,-324.083758,0.0003863,120]
[394788666,1763949045452,-151.0,0.0003863,120]
[394788667,1763949045461,-241.146188,0.0003863,120]
[394788668,1763949045470,-324.083758,0.0003863,120]
[394788669,1763949045479,-600.0,0.0003863,30]
[394788670,1763949045488,-500.0,0.00038673,5]
[394788671,1763949045497,-500.0,0.00038673,5]
[394788672,1763949045506,-500.0,0.00038673,5]
[394788673,1763949045516,-500.0,0.00038673,5]
[394788674,1763949045524,-500.92010829,0.00038673,5]
[394788675,1763949045534,-158.84342817,0.00038673,5]
[394788676,1763949045543,-500.9891276,0.00038673,5]
[394788677,1763949045553,-417.61433429,0.00038673,2]
[394788678,1763949045567,-500.48572372,0.00038673,5]
[394788679,1763949045576,-500.0,0.00038673,5]
[394788680,1763949045586,-500.0,0.00038673,5]
[394788681,1763949045596,-414.56319387,0.00038673,5]
[394788682,1763949045605,-164.89619302,0.00038673,5]
[394788683,1763949045615,-500.0,0.00038673,5]
[394788684,1763949045624,-500.0,0.00038673,5]
[394788685,1763949045633,-501.27256296,0.00038673,5]
[394788686,1763949045642,-500.0,0.00038673,5]
[394788687,1763949045651,-500.0,0.00038673,5]
[394788688,1763949045660,-500.0,0.00038673,5]
[394788689,1763949045669,-501.02178861,0.00038673,5]
[394788690,1763949045679,-501.2949182,0.00038673,5]
[394788691,1763949045688,-500.65345159,0.00038673,5]
[394788692,1763949045699,-501.77996762,0.00038673,5]
[394788693,1763949045708,-500.86341924,0.00038673,5]
[394788694,1763949045717,-164.1506102,0.00038673,5]
[394788695,1763949045726,-162.94835996,0.00038673,5]
[394788696,1763949045735,-500.93609183,0.00038673,5]
[394788697,1763949045744,-520.99312177,0.00038673,5]
[394788698,1763949045755,-500.73816641,0.00038673,5]
[394788699,1763949045764,-487.28339761,0.00038673,5]
[394788700,1763949045774,-166.66,0.00038735,30]
[394788701,1763949045785,-3506.18369606,0.00038765,2]
[394788702,1763949045795,-6205.33072545,0.00038765,2]
[394788703,1763949045804,-959.67,0.00038793,30]
[394788704,1763949045813,-1000.0,0.00038821,2]
[394788705,1763949045822,-1000.0,0.00038821,5]
[394788706,1763949045831,-190.74008615,0.00038821,5]
[394788707,1763949045840,-259.0,0.00038867,2]
[394788708,1763949045849,-2851.8402,0.00038888,30]
[394788709,1763949045858,-150.0,0.000389,120]
[394788710,1763949045867,-519.92333989,0.00038904,8]
[394788711,1763949045876,-500.0,0.00038904,8]
[394788712,1763949045885,-500.0,0.00038904,8]
[394788713,1763949045895,-538.42,0.00038904,8]
[394788714,1763949045904,-524.31276872,0.00038904,8]
[394788715,1763949045913,-272.2050071,0.00038904,8]
[394788716,1763949045923,-513.40789647,0.00038904,8]
[394788717,1763949045933,-500.0,0.00038904,8]
[394788718,1763949045942,-500.0,0.00038904,8]
[394788719,1763949045951,-176.79760706,0.00038904,8]
[394788720,1763949045961,-500.0,0.00038904,8]
[394788721,1763949045971,-624.01608978,0.00038904,8]
[394788722,1763949045980,-799.54,0.00038904,8]
[394788723,1763949045990,-500.0,0.00038904,8]
[394788724,1763949045999,-500.0,0.00038904,8]
[394788725,1763949046008,-521.41627884,0.00038904,8]
[394788726,1763949046017,-500.0,0.00038904,8]
[394788727,1763949046027,-500.0,0.00038904,8]
[394788728,1763949046039,-500.0,0.00038904,8]
[394788729,1763949046048,-505.36680889,0.00038904,8]
[394788730,1763949046057,-500.0,0.00038904,8]
[394788731,1763949046067,-162.19094881,0.00038904,8]
[394788732,1763949046078,-500.0,0.00038904,8]
[394788733,1763949046088,-513.6180178,0.00038904,8]
[394788734,1763949046097,-1024.09,0.00038904,8]
[394788735,1763949046108,-500.0,0.00038904,8]
[394788736,1763949046119,-500.0,0.00038904,8]
[394788737,1763949046128,-500.0,0.00038904,8]
[394788738,1763949046138,-500.0,0.00038904,8]
[394788739,1763949046147,-500.0,0.00038904,8]
[394788740,1763949046157,-175.94714577,0.00038904,8]
[394788741,1763949046166,-500.0,0.00038904,8]
[394788742,1763949046176,-500.0,0.00038904,8]
[394788743,1763949046185,-500.0,0.00038904,8]
[394788744,1763949046195,-500.0,0.00038904,8]
[394788745,1763949046204,-500.0,0.00038904,8]
[394788746,1763949046213,-500.0,0.00038904,8]
[394788747,1763949046222,-423.08975585,0.00038904,8]
[394788748,1763949046231,-500.0,0.00038904,8]
[394788749,1763949046240,-500.0,0.00038904,8]
[394788750,1763949046250,-500.0,0.00038904,8]
[394788751,1763949046259,-500.0,0.00038904,8]
[394788752,1763949046269,-500.0,0.00038904,8]
[394788753,1763949046279,-500.0,0.00038904,8]
[394788755,1763949046288,-500.0,0.00038904,8]
[394788757,1763949046297,-600.0,0.00038904,30]
[394788759,1763949046306,-522.3509747,0.00038939,2]
[394788761,1763949046315,-161.0,0.00039,120]
[394788763,1763949046325,-959.67,0.00039067,30]
[394788765,1763949046335,-3506.18369606,0.0003907,2]
[394788767,1763949046345,-6205.33072545,0.0003907,2]
[394788769,1763949046354,-168.0,0.00039081,7]
[394788771,1763949046363,-168.0,0.00039095,2]
[394788773,1763949046373,-168.0,0.00039107,120]
[394788775,1763949046382,-168.0,0.00039109,2]
[394788777,1763949046391,-555.83542792,0.00039178,8]
[394788779,1763949046401,-158.00126731,0.00039178,8]
[394788781,1763949046410,-538.42,0.00039178,8]
[394788784,1763949046419,-500.0,0.00039178,8]
[394788785,1763949046428,-500.0,0.00039178,8]
[394788788,1763949046438,-500.0,0.00039178,8]
[394788790,1763949046447,-799.54,0.00039178,8]
[394788792,1763949046457,-500.0,0.00039178,8]
[394788794,1763949046466,-512.03240882,0.00039178,8]
[394788796,1763949046475,-592.3804539,0.00039178,8]
[394788798,1763949046484,-500.0,0.00039178,8]
[394788800,1763949046494,-400.58243321,0.00039178,8]
[394788802,1763949046504,-500.0,0.00039178,8]
[394788804,1763949046513,-500.0,0.00039178,8]
[394788806,1763949046522,-1024.09,0.00039178,8]
[394788808,1763949046532,-563.16138936,0.00039178,8]
[394788810,1763949046541,-500.0,0.00039178,8]
[394788812,1763949046550,-500.0,0.00039178,8]
[394788814,1763949046559,-500.0,0.00039178,8]
[394788816,1763949046571,-500.0,0.00039178,8]
[394788818,1763949046580,-500.0,0.00039178,8]
[394788820,1763949046589,-167.4668689,0.00039178,8]
[394788822,1763949046599,-553.8797098,0.00039178,8]
[394788824,1763949046608,-500.0,0.00039178,8]
[394788826,1763949046618,-500.0,0.00039178,8]
[394788829,1763949046628,-500.0,0.00039178,8]
[394788831,1763949046637,-215.03559866,0.00039178,8]
[394788833,1763949046646,-423.85584845,0.00039178,8]
[394788835,1763949046657,-500.0,0.00039178,8]
[394788837,1763949046667,-186.17470191,0.00039178,8]
[394788839,1763949046676,-181.20232474,0.00039178,8]
[394788841,1763949046685,-500.0,0.00039178,8]
[394788843,1763949046694,-600.0,0.00039178,30]
[394788845,1763949046704,-608.78,0.00039207,2]
[394788847,1763949046713,-437.5236953,0.00039221,5]
[394788849,1763949046724,-503.21257311,0.00039221,5]
[394788851,1763949046733,-1000.0,0.00039221,5]
[394788853,1763949046742,-1000.0,0.00039221,5]
[394788855,1763949046753,-502.38861788,0.00039221,5]
[394788857,1763949046762,-501.83104385,0.00039221,5]
[394788859,1763949046772,-1139.26901875,0.00039221,5]
[394788861,1763949046782,-500.70866574,0.00039221,5]
[394788863,1763949046791,-368.86223502,0.00039221,5]
[394788865,1763949046800,-505.0559587,0.00039221,5]
[394788867,1763949046810,-501.75431702,0.00039221,5]
[394788869,1763949046820,-168.0,0.00039245,7]
[394788871,1763949046830,-156.31239139,0.00039262,8]
[394788873,1763949046839,-168.0,0.00039274,2]
[394788875,1763949046849,-522.3509747,0.00039331,2]
[394788877,1763949046858,-959.67,0.00039341,30]
[394788879,1763949046868,-500.0,0.00039356,7]
[394788881,1763949046878,-500.0,0.00039356,7]
[394788883,1763949046887,-900.0,0.00039356,7]
[394788885,1763949046896,-1643.64391525,0.00039368,2]
[394788887,1763949046906,-282.10535313,0.00039368,5]
[394788889,1763949046915,-3506.18369606,0.00039375,2]
[394788891,1763949046925,-6205.33072545,0.00039375,2]
[394788893,1763949046935,-168.0,0.00039433,2]
[394788895,1763949046944,-517.32924025,0.00039451,8]
[394788897,1763949046954,-538.42,0.00039452,8]
[394788899,1763949046963,-561.28737177,0.00039452,8]
[394788901,1763949046972,-500.0,0.00039452,8]
[394788903,1763949046982,-500.0,0.00039452,8]
[394788905,1763949046992,-799.54,0.00039452,8]
[394788907,1763949047002,-500.0,0.00039452,8]
[394788909,1763949047011,-500.0,0.00039452,8]
[394788911,1763949047021,-500.0,0.00039452,8]
[394788913,1763949047031,-500.0,0.00039452,8]
[394788915,1763949047045,-1024.09,0.00039452,8]
[394788917,1763949047055,-500.0,0.00039452,8]
[394788919,1763949047064,-500.0,0.00039452,8]
[394788921,1763949047074,-500.0,0.00039452,8]
[394788923,1763949047085,-488.35647871,0.00039452,8]
[394788925,1763949047095,-500.0,0.00039452,8]
[394788927,1763949047105,-500.0,0.00039452,8]
[394788929,1763949047117,-500.0,0.00039452,8]
[394788930,1763949047126,-500.0,0.00039452,8]
[394788932,1763949047135,-194.04729425,0.00039452,8]
[394788934,1763949047144,-500.0,0.00039452,8]
[394788936,1763949047153,-221.41,0.00039452,30]
[394788938,1763949047163,-156.82112978,0.00039537,2]
[394788940,1763949047172,-959.67,0.00039615,30]
[394788942,1763949047182,-3506.18369606,0.0003968,2]
[394788944,1763949047191,-6205.33072545,0.0003968,2]
[394788946,1763949047201,-289.46271506,0.00039687,30]
[394788948,1763949047211,-5613.0,0.00039721,5]
[394788950,1763949047220,-522.3509747,0.00039724,2]
[394788952,1763949047230,-538.42,0.00039726,8]
[394788954,1763949047240,-500.0,0.00039726,8]
[394788956,1763949047250,-500.0,0.00039726,8]
[394788958,1763949047259,-799.54,0.00039726,8]
[394788960,1763949047269,-191.71311122,0.00039726,8]
[394788962,1763949047278,-500.0,0.00039726,8]
[394788964,1763949047288,-500.0,0.00039726,8]
[394788966,1763949047297,-500.0,0.00039726,8]
[394788968,1763949047307,-1024.09,0.00039726,8]
[394788970,1763949047317,-325.08823164,0.00039726,8]
[394788971,1763949047326,-500.0,0.00039726,8]
[394788973,1763949047336,-326.85130377,0.00039726,8]
[394788975,1763949047345,-500.0,0.00039726,8]
[394788977,1763949047355,-500.0,0.00039726,8]
[394788979,1763949047364,-500.0,0.00039726,8]
[394788981,1763949047374,-500.0,0.00039726,8]
[394788983,1763949047383,-500.0,0.00039726,8]
[394788985,1763949047393,-600.01,0.00039726,30]
[394788987,1763949047402,-168.0,0.00039752,7]
[394788989,1763949047412,-2755.05,0.00039757,2]
[394788991,1763949047421,-712.0,0.0003977,20]
[394788993,1763949047431,-439.76414144,0.0003977,2]
[394788994,1763949047441,-576.48,0.000398,61]
[394788995,1763949047450,-168.0,0.00039813,2]
[394788996,1763949047459,-168.0,0.00039826,120]
[394788997,1763949047468,-150.32844836,0.00039873,5]
[394788998,1763949047478,-5567.73735584,0.00039888,2]
[394788999,1763949047487,-959.67,0.00039889,30]
[394789000,1763949047497,-20675.5937,0.000399,2]
[394789001,1763949047507,-1000.0,0.000399,2]
[394789002,1763949047516,-168.0,0.0003996,2]
[394789003,1763949047526,-3506.18369606,0.00039985,15]
[394789004,1763949047535,-6205.33072545,0.00039985,15]
[394789005,1763949047544,-223.0315306,0.00039999,30]
[394789006,1763949047554,-500.0,0.0004,120]
[394789007,1763949047564,-2053.54,0.0004,60]
[394789008,1763949047574,-163.97,0.0004,120]
[394789009,1763949047584,-1242.27,0.0004,60]
[394789010,1763949047596,-2000.0,0.0004,60]
[394789011,1763949047605,-215.88,0.0004,120]
[394789012,1763949047615,-538.42,0.0004,8]
[394789013,1763949047625,-151.0,0.0004,120]
[394789014,1763949047635,-151.0,0.0004,30]
[394789015,1763949047646,-165.048814,0.0004,120]
[394789016,1763949047655,-500.0,0.0004,8]
[394789017,1763949047665,-500.0,0.0004,8]
[394789018,1763949047675,-799.54,0.0004,8]
[394789019,1763949047685,-1626.0,0.0004,7]
[394789020,1763949047695,-2610.09,0.0004,120]
[394789021,1763949047705,-221.49540286,0.0004,8]
[394789022,1763949047715,-153.42658531,0.0004,8]
[394789023,1763949047724,-500.0,0.0004,8]
[394789024,1763949047734,-1024.09,0.0004,8]
[394789025,1763949047743,-500.0,0.0004,8]
[394789026,1763949047753,-500.0,0.0004,8]
[394789027,1763949047774,-500.0,0.0004,8]
[394789028,1763949047787,-161.0,0.0004,2]
[394789029,1763949047796,-161.0,0.0004,2]
[394789030,1763949047806,-500.0,0.0004,8]
[394789031,1763949047816,-500.0,0.0004,8]
[394789032,1763949047825,-500.0,0.0004,8]
[394789033,1763949047835,-168.0,0.0004002,2]
[394789034,1763949047844,-167.65990661,0.00040069,14]
[394789035,1763949047854,-1659.0,0.000401,2]
[394789036,1763949047863,-959.67,0.00040163,30]
[394789037,1763949047873,-500.0,0.00040178,7]
[394789038,1763949047882,-900.0,0.00040178,7]
[394789039,1763949047891,-712.0,0.0004018,20]
[394789040,1763949047901,-845.353672,0.00040183,120]
[394789041,1763949047911,-177.64,0.00040192,2]
[394789042,1763949047920,-169.75,0.00040192,2]
[394789043,1763949047929,-151.8,0.00040192,2]
[394789044,1763949047939,-424.88,0.00040192,2]
[394789045,1763949047950,-169.75,0.00040192,2]
[394789046,1763949047959,-177.64,0.00040192,2]
[394789047,1763949047968,-177.64,0.00040192,2]
[394789048,1763949047978,-167.78,0.00040192,2]
[394789049,1763949047988,-177.64,0.00040192,2]
[394789050,1763949047998,-500.0,0.00040272,8]
[394789051,1763949048008,-500.0,0.00040272,8]
[394789052,1763949048017,-500.0,0.00040272,7]
[394789053,1763949048028,-538.42,0.00040273,8]
[394789054,1763949048039,-230.10454981,0.00040273,8]
[394789055,1763949048049,-500.0,0.00040273,8]
[394789056,1763949048059,-799.54,0.00040273,8]
[394789057,1763949048070,-500.0,0.00040273,8]
[394789058,1763949048083,-1024.09,0.00040273,8]
[394789059,1763949048093,-491.69377355,0.00040273,8]
[394789060,1763949048103,-435.93905596,0.00040273,8]
[394789061,1763949048113,-165.32366597,0.00040273,8]
[394789062,1763949048126,-500.0,0.00040273,8]
[394789063,1763949048136,-500.0,0.00040273,8]
[394789064,1763949048145,-224.96444457,0.00040273,8]
[394789065,1763949048156,-167.757588,0.0004029,120]
[394789066,1763949048165,-151.0,0.0004029,120]
[394789067,1763949048175,-151.0,0.0004029,120]
[394789068,1763949048185,-163.361868,0.0004029,120]
[394789069,1763949048195,-151.0,0.0004029,120]
[394789070,1763949048204,-3506.18369606,0.0004029,15]
[394789071,1763949048215,-6205.33072545,0.0004029,15]
[394789072,1763949048225,-168.0,0.00040404,2]
[394789073,1763949048235,-959.67,0.00040437,30]
[394789074,1763949048245,-188.31022158,0.00040466,2]
[394789075,1763949048256,-577.4726601,0.0004047,3]
[394789076,1763949048266,-1801.72429061,0.0004047,3]
[394789077,1763949048276,-520.69666689,0.00040483,8]
[394789078,1763949048285,-500.0,0.00040483,2]
[394789079,1763949048295,-1320.0,0.00040494,2]
[394789080,1763949048305,-843.0,0.00040494,2]
[394789081,1763949048473,-911.685,0.00040494,2]
[394789082,1763949048487,-661.708,0.00040494,2]
[394789083,1763949048496,-1261.364,0.00040494,2]
[394789084,1763949048508,-252.0,0.00040494,2]
[394789085,1763949048518,-6499.0,0.00040494,2]
[394789086,1763949048527,-2660.0,0.00040494,2]
[394789087,1763949048536,-2000.0,0.000405,60]
[394789088,1763949048546,-1081.66,0.00040507,30]
[394789089,1763949048555,-1081.66,0.00040507,30]
[394789090,1763949048565,-1081.66,0.00040507,30]
[394789091,1763949048574,-1081.66,0.00040507,30]
[394789092,1763949048584,-608.78,0.00040529,2]
[394789093,1763949048594,-538.42,0.00040547,8]
[394789094,1763949048604,-500.0,0.00040547,8]
[394789095,1763949048614,-799.54,0.00040547,8]
[394789096,1763949048623,-532.83080531,0.00040547,8]
[394789097,1763949048632,-1024.09,0.00040547,8]
[394789098,1763949048642,-506.77459559,0.00040547,8]
[394789099,1763949048652,-235.78,0.00040547,8]
[394789100,1763949048661,-712.0,0.0004059,20]
[394789101,1763949048670,-3506.18369606,0.00040595,15]
[394789102,1763949048679,-645.44,0.00040638,120]
[394789103,1763949048688,-200.0,0.00040672,20]
[394789104,1763949048697,-9448.591198,0.00040705,2]
[394789105,1763949048706,-4485.741736,0.00040705,2]
[394789106,1763949048716,-151.806196,0.00040705,120]
[394789107,1763949048726,-267.765502,0.00040705,120]
[394789108,1763949048734,-267.765502,0.00040705,120]
[394789109,1763949048743,-151.0,0.00040705,120]
[394789110,1763949048754,-267.765502,0.00040705,120]
[394789111,1763949048763,-267.765502,0.00040705,120]
[394789112,1763949048777,-151.0,0.00040705,120]
[394789113,1763949048787,-162.494772,0.00040705,120]
[394789114,1763949048796,-151.0,0.00040705,120]
[394789115,1763949048805,-162.494772,0.00040705,120]
[394789116,1763949048815,-151.0,0.00040705,120]
[394789117,1763949048824,-161.940808,0.00040705,120]
[394789118,1763949048833,-153.648457,0.00040705,120]
[394789119,1763949048843,-162.494772,0.00040705,120]
[394789120,1763949048853,-151.0,0.00040705,120]
[394789121,1763949048863,-151.0,0.00040705,120]
[394789122,1763949048872,-162.494772,0.00040705,120]
[394789123,1763949048882,-151.0,0.00040705,120]
[394789124,1763949048894,-151.0,0.00040705,120]
[394789125,1763949048904,-248.632951,0.00040705,120]
[394789126,1763949048914,-324.083758,0.00040705,120]
[394789127,1763949048923,-151.0,0.00040705,120]
[394789128,1763949048932,-324.083758,0.00040705,120]
[394789129,1763949048942,-157.621291,0.00040705,120]
[394789130,1763949048951,-959.67,0.00040711,30]
[394789131,1763949048960,-849.2687416,0.0004077,2]
[394789132,1763949048970,-5489.4881793,0.0004077,2]
[394789133,1763949048979,-151.0,0.0004077,30]
[394789134,1763949048988,-279.076884,0.0004077,120]
[394789135,1763949048998,-151.0,0.0004077,120]
[394789136,1763949049007,-279.076884,0.0004077,120]
[394789137,1763949049016,-195.364002,0.0004077,120]
[394789138,1763949049026,-279.076884,0.0004077,120]
[394789139,1763949049035,-279.076884,0.0004077,120]
[394789140,1763949049048,-337.362677,0.0004077,120]
[394789141,1763949049057,-337.362677,0.0004077,120]
[394789142,1763949049066,-337.362677,0.0004077,120]
[394789143,1763949049077,-337.362677,0.0004077,120]
[394789144,1763949049086,-164.811871,0.0004077,120]
[394789145,1763949049095,-159.277478,0.0004077,120]
[394789146,1763949049104,-151.0,0.0004077,120]
[394789147,1763949049115,-151.0,0.0004077,120]
[394789148,1763949049125,-575.225091,0.0004077,30]
[394789149,1763949049135,-575.225091,0.0004077,30]
[394789150,1763949049145,-575.225091,0.0004077,30]
[394789151,1763949049154,-575.225091,0.0004077,30]
[394789152,1763949049164,-151.0,0.0004077,120]
[394789153,1763949049173,-157.349243,0.0004077,120]
[394789154,1763949049183,-1081.66,0.00040781,30]
[394789155,1763949049194,-1081.66,0.00040781,30]
[394789156,1763949049203,-271.77094374,0.0004082,2]
[394789157,1763949049213,-538.42,0.00040821,8]
[394789158,1763949049223,-500.0,0.00040821,8]
[394789159,1763949049234,-799.54,0.00040821,8]
[394789160,1763949049245,-1024.09,0.00040821,8]
[394789161,1763949049255,-1000.0,0.00040822,15]
[394789162,1763949049264,-1000.0,0.00040822,15]
[394789163,1763949049273,-1000.0,0.00040822,15]
[394789164,1763949049282,-1000.0,0.00040822,15]
[394789165,1763949049292,-1000.0,0.00040822,15]
[394789166,1763949049301,-1000.0,0.00040822,15]
[394789167,1763949049311,-1000.0,0.00040822,15]
[394789168,1763949049321,-1000.0,0.00040822,15]
[394789169,1763949049330,-1139.0,0.00040822,15]
[394789170,1763949049339,-500.0,0.0004087,3]
[394789171,1763949049349,-1000.0,0.0004087,3]
[394789172,1763949049358,-500.0,0.00040898,2]
[394789173,1763949049367,-1000.0,0.00040898,3]
[394789174,1763949049376,-437.60305017,0.00040899,30]
[394789175,1763949049386,-152.33888936,0.00040899,30]
[394789176,1763949049395,-1500.0,0.00040899,30]
[394789177,1763949049404,-414.0,0.00040899,30]
[394789178,1763949049414,-250.0,0.00040899,30]
[394789179,1763949049423,-1500.0,0.00040899,30]
[394789180,1763949049432,-429.318,0.00040899,30]
[394789181,1763949049441,-250.0,0.00040899,30]
[394789182,1763949049451,-1500.0,0.00040899,30]
[394789183,1763949049460,-445.202766,0.00040899,30]
[394789184,1763949049469,-250.0,0.00040899,30]
[394789185,1763949049481,-1500.0,0.00040899,30]
[394789186,1763949049490,-461.67526834,0.00040899,30]
[394789187,1763949049500,-250.0,0.00040899,30]
[394789188,1763949049510,-500.0,0.00040899,30]
[394789189,1763949049519,-805.70833794,0.00040899,30]
[394789190,1763949049528,-1500.0,0.00040899,30]
[394789191,1763949049537,-5000.0,0.00040899,30]
[394789192,1763949049547,-617.51171742,0.00040899,30]
[394789193,1763949049556,-250.0,0.00040899,30]
[394789194,1763949049565,-500.0,0.00040899,30]
[394789195,1763949049575,-250.0,0.00040899,30]
[394789196,1763949049584,-520.0,0.00040899,30]
[394789197,1763949049593,-1500.0,0.00040899,30]
[394789198,1763949049602,-5000.0,0.00040899,30]
[394789199,1763949049611,-250.0,0.00040899,30]
[394789200,1763949049621,-583.89870999,0.00040899,30]
[394789201,1763949049631,-500.0,0.00040899,30]
[394789202,1763949049641,-250.0,0.00040899,30]
[394789203,1763949049650,-539.24,0.00040899,30]
[394789204,1763949049659,-1500.0,0.00040899,30]
[394789205,1763949049668,-568.34249325,0.00040899,30]
[394789206,1763949049678,-265.33285947,0.00040899,30]
[394789207,1763949049688,-500.0,0.00040899,30]
[394789208,1763949049698,-250.0,0.00040899,30]
[394789209,1763949049707,-392.86157636,0.00040899,30]
[394789210,1763949049716,-1500.0,0.00040899,30]
[394789211,1763949049726,-500.0,0.00040899,30]
[394789212,1763949049735,-250.0,0.00040899,30]
[394789213,1763949049745,-1500.0,0.00040899,30]
[394789214,1763949049757,-500.0,0.00040899,30]
[394789215,1763949049766,-250.0,0.00040899,30]
[394789216,1763949049776,-1099.23656211,0.00040899,30]
[394789217,1763949049785,-526.54584842,0.00040899,30]
[394789218,1763949049796,-250.0,0.00040899,30]
[394789219,1763949049805,-261.0349149,0.00040899,30]
[394789220,1763949049814,-218.83931656,0.00040899,30]
[394789221,1763949049823,-500.0,0.00040899,30]
[394789222,1763949049833,-215.0738,0.00040899,30]
[394789223,1763949049843,-500.0,0.00040899,30]
[394789224,1763949049852,-500.0,0.00040899,30]
[394789225,1763949049861,-250.0,0.00040899,30]
[394789226,1763949049870,-250.0,0.00040899,30]
[394789227,1763949049881,-500.0,0.00040899,30]
[394789228,1763949049890,-250.0,0.00040899,30]